bitfinex-derivatives/quotes_ETHF0:USTF0_20251006
["timestamp","ask_amount","ask_price","bid_price","bid_amount"]
[1759752449945,0.3925,4584.2,4584.1,0.7753]
[1759752450648,0.00223212,4584.5,4584.1,0.7753]
[1759752450950,0.61328,4584.4,4584.3,0.7753]
[1759752451752,0.00223212,4584.5,4584.4,0.7753]
[1759752455348,0.76843212,4584.5,4584.4,0.7753]
[1759752456650,1.15867,4584.4,4584.3,0.5458]
[1759752456953,1.15867,4584.4,4584.3,0.7675]
[1759752457845,1.15867,4584.4,4584.2,3.2078]
[1759752458052,0.7662,4584.3,4584.2,3.5433]
[1759752458351,0.7662,4584.3,4584.2,3.7536]
[1759752458853,0.7662,4584.3,4584.2,3.9753]
[1759752460551,0.2136,4583.8,4583.7,0.82453]
[1759752460742,0.60612,4583.8,4583.7,0.432]
[1759752460946,0.60612,4583.8,4583.7,1.16003]
[1759752461144,0.39251,4584.0,4583.8,0.39252]
[1759752461350,0.3925,4584.1,4584.0,1.29211]
[1759752461746,1.07346223,4584.1,4584.0,0.8996]
[1759752462554,1.62606223,4584.1,4584.0,0.7675]
[1759752463148,1.62606223,4584.1,4584.0,1.16001]
[1759752463448,1.62606223,4584.1,4584.0,0.7675]
[1759752463655,1.07346223,4584.1,4584.0,1.29211]
[1759752464048,1.07346223,4584.1,4584.0,0.8996]
[1759752464353,1.62606223,4584.1,4584.0,0.7675]
[1759752466260,0.60613,4583.7,4583.6,3.4181]
[1759752466451,0.68636223,4584.1,4584.0,0.5641]
[1759752466452,0.8251,4584.1,4584.0,0.5641]
[1759752466652,1.29326912,4584.1,4584.0,0.95661]
[1759752466852,1.29326912,4584.1,4584.0,1.29211]
[1759752468558,1.83716912,4584.1,4584.0,0.7675]
[1759752468758,0.7333,4583.7,4583.6,3.2078]
[1759752469063,1.59399912,4583.7,4583.6,3.9698]
[1759752472661,1.27499912,4583.7,4583.6,4.36234]
[1759752472860,1.59399912,4583.7,4583.6,4.36234]
[1759752473660,1.81299912,4583.7,4583.6,4.36234]
[1759752473962,1.81299912,4583.7,4583.6,3.9698]
[1759752474962,1.81299912,4583.7,4583.6,4.36234]
[1759752477059,1.29009912,4583.7,4583.6,4.36234]
[1759752478066,1.81299912,4583.7,4583.6,3.9698]
[1759752478365,1.07969912,4583.7,4583.6,4.36234]
[1759752479261,1.07969912,4583.7,4583.6,3.9698]
[1759752479663,1.07969912,4583.7,4583.6,4.36234]
[1759752480358,0.39249,4584.3,4584.2,0.39248]
[1759752480565,1.07976477,4584.3,4584.2,0.762]
[1759752480766,1.07976477,4584.3,4584.2,0.5458]
[1759752480767,1.81306477,4584.3,4584.2,0.5458]
[1759752481567,1.81306477,4584.3,4584.2,0.762]
[1759752482166,1.81306477,4584.3,4583.5,0.1274]
[1759752482167,0.7333,4583.6,4583.5,0.762]
[1759752482368,1.34484,4583.6,4583.5,0.762]
[1759752482571,0.61154,4583.6,4583.5,1.28195]
[1759752483258,1.34484,4583.6,4583.5,0.762]
[1759752483656,1.34484,4583.6,4583.5,0.5458]
[1759752483864,1.81330349,4583.6,4583.5,0.5458]
[1759752484260,1.81330349,4583.6,4583.4,3.2078]
[1759752484261,0.52465,4583.5,4583.4,3.2078]
[1759752484462,0.7333,4583.1,4583.0,0.2119]
[1759752484668,0.7333,4583.1,4582.6,0.2119]
[1759752484669,0.80692,4582.7,4582.6,0.2119]
[1759752484965,1.12592,4582.7,4582.6,0.762]
[1759752485164,1.34492,4582.7,4582.6,0.762]
[1759752487161,0.9523,4582.7,4582.6,0.762]
[1759752487362,0.219,4582.7,4582.6,0.762]
[1759752487666,0.4294,4582.7,4582.6,0.762]
[1759752487969,0.9523,4582.7,4582.6,0.762]
[1759752488166,0.6333,4582.7,4582.6,0.762]
[1759752488360,0.4294,4582.7,4582.6,0.762]
[1759752488565,0.219,4582.7,4582.6,0.762]
[1759752489872,0.4294,4582.7,4582.6,0.762]
[1759752490973,0.9523,4582.7,4582.6,0.762]
[1759752491171,0.7333,4582.5,4582.4,0.54780735]
[1759752491866,0.8654,4582.5,4582.4,0.00200735]
[1759752492065,0.8654,4582.5,4581.6,0.39271]
[1759752492066,0.59661,4581.7,4581.6,0.762]
[1759752492274,1.12601,4581.7,4581.6,1.15471]
[1759752492479,1.12601,4581.7,4581.6,0.762]
[1759752492973,1.12601,4581.7,4581.6,0.5458]
[1759752493165,1.12601,4581.7,4581.6,0.00179112]
[1759752493369,1.12601,4581.7,4581.6,0.21369112]
[1759752493568,1.12601,4581.7,4581.6,0.54759112]
[1759752495272,0.7333,4581.7,4581.6,0.54759112]
[1759752495576,0.7333,4581.7,4581.6,0.76379112]
[1759752496275,0.7333,4581.7,4581.6,0.54759112]
[1759752496474,0.7333,4581.7,4581.6,0.21369112]
[1759752496778,0.7333,4581.7,4581.6,0.00179112]
[1759752498071,3.62208423,4581.7,4581.6,0.00179112]
[1759752498375,8.62208423,4581.7,4581.6,0.00179112]
[1759752501177,0.81227,4580.9,4580.7,3.2078]
[1759752501384,0.959,4580.8,4580.7,3.2078]
[1759752501582,0.959,4580.8,4580.7,3.746]
[1759752502077,0.96129212,4580.8,4580.7,3.74881576]
[1759752503077,0.96129212,4580.8,4580.7,3.97041576]
[1759752503278,1.35407212,4580.8,4580.7,4.36320576]
[1759752503780,1.35407212,4580.8,4580.7,3.97041576]
[1759752503982,1.35407212,4580.8,4580.7,3.74881576]
[1759752504982,1.35407212,4580.8,4580.7,4.14160576]
[1759752505183,1.35407212,4580.8,4580.7,3.74881576]
[1759752505885,1.35407212,4580.8,4580.7,3.21061576]
[1759752506087,4.13697091,4580.8,4580.7,0.00281576]
[1759752509085,7.34477091,4580.8,4580.7,0.00281576]
[1759752509283,12.34477091,4580.8,4580.7,0.00281576]
[1759752512484,12.34477091,4580.8,4580.7,0.54101576]
[1759752512686,9.13697091,4580.8,4580.7,0.54101576]
[1759752512889,9.13697091,4580.8,4580.7,0.22331576]
[1759752513086,9.13697091,4580.8,4580.7,0.00281576]
[1759752514793,8.91797091,4580.8,4580.7,0.00281576]
[1759752514982,9.13697091,4580.8,4580.7,0.00281576]
[1759752516192,12.34477091,4580.8,4580.7,0.00281576]
[1759752517285,12.34477091,4580.8,4580.7,0.75901576]
[1759752517286,11.38577091,4580.8,4580.7,0.75901576]
[1759752517588,0.00229212,4580.8,4580.7,4.35960576]
[1759752517890,0.22129212,4580.8,4580.7,4.35960576]
[1759752518485,0.00229212,4580.8,4580.7,4.35960576]
[1759752518686,0.22129212,4580.8,4580.7,4.35960576]
[1759752519981,0.22129212,4580.8,4580.7,3.96681576]
[1759752520188,0.98399212,4580.8,4580.7,3.96681576]
[1759752520393,0.98399212,4580.8,4580.7,0.75901576]
[1759752521393,0.66899212,4580.8,4580.7,0.75901576]
[1759752521891,1.06177212,4580.8,4580.7,0.75901576]
[1759752522094,1.06177212,4580.8,4580.7,1.15180576]
[1759752522593,1.37677212,4580.8,4580.7,1.15180576]
[1759752523095,0.22129212,4580.8,4580.7,4.35960576]
[1759752523693,0.83677212,4580.8,4580.7,4.35960576]
[1759752524196,0.83677212,4580.8,4580.7,3.96681576]
[1759752524492,0.83677212,4580.8,4580.7,4.35960576]
[1759752524890,0.61407212,4580.8,4580.7,4.35960576]
[1759752525090,0.83677212,4580.8,4580.7,4.35960576]
[1759752525291,1.15177212,4580.8,4580.7,4.35960576]
[1759752526188,1.84751864,4580.8,4580.7,4.35960576]
[1759752526590,1.37677212,4580.8,4580.7,4.35960576]
[1759752527088,0.22129212,4580.8,4580.7,4.35960576]
[1759752527495,1.30751826,4580.8,4580.7,4.35960576]
[1759752527695,1.30751826,4580.8,4580.7,3.96681576]
[1759752528098,0.91473826,4580.8,4580.7,4.35960576]
[1759752528594,1.30751826,4580.8,4580.7,4.35960576]
[1759752528794,1.30751826,4580.8,4580.7,1.15180576]
[1759752528997,1.30751826,4580.8,4580.7,0.75901576]
[1759752529692,1.64121826,4580.8,4580.7,0.75901576]
[1759752529894,1.08481826,4580.8,4580.7,0.75901576]
[1759752530094,1.08481826,4580.8,4580.7,1.15180576]
[1759752530894,1.08481826,4580.8,4580.7,0.75901576]
[1759752531099,1.29651826,4580.8,4580.7,0.75901576]
[1759752532397,1.08481826,4580.8,4580.7,1.15180576]
[1759752532599,1.08481826,4580.8,4580.7,4.35960576]
[1759752533598,0.00229212,4580.8,4580.7,9.35960576]
[1759752534890,0.00229212,4580.8,4580.7,10.5279716]
[1759752536205,0.00229212,4580.8,4580.7,50.15960576]
[1759752536500,0.00229212,4580.8,4580.7,51.3279716]
[1759752539101,0.00229212,4580.8,4580.7,50.15960576]
[1759752539903,0.82468,4582.0,4581.9,0.7408]
[1759752540104,1.51450813,4582.0,4581.9,0.7408]
[1759752540497,0.90152813,4582.0,4581.9,1.13349]
[1759752540701,0.61168,4582.0,4581.9,1.13349]
[1759752540905,0.22091206,4582.0,4581.9,1.13349]
[1759752541497,0.00191206,4582.0,4581.9,1.13349]
[1759752542200,0.00191206,4582.0,4581.9,1.3112627]
[1759752542401,0.00191206,4582.0,4581.9,42.1112627]
[1759752542701,0.00191206,4582.0,4581.9,41.93349]
[1759752544807,0.00191206,4582.0,4581.9,41.5408]
[1759752545008,0.76761206,4582.0,4581.9,0.7408]
[1759752546308,0.43391206,4582.0,4581.9,0.7408]
[1759752546509,0.76761206,4582.0,4581.9,0.7408]
[1759752548405,0.00191206,4582.0,4581.9,0.7408]
[1759752553102,0.12671206,4582.0,4581.8,0.2123]
[1759752553312,0.82471,4581.6,4581.5,3.7262]
[1759752553507,0.00191206,4582.0,4581.9,0.7408]
[1759752553709,0.76761206,4582.0,4581.9,0.7408]
[1759752553912,0.89241206,4582.0,4581.9,0.2123]
[1759752554111,0.89241206,4582.0,4581.6,0.3061]
[1759752554413,1.15841,4581.6,4581.5,3.2078]
[1759752554710,1.15841,4581.6,4581.5,3.4201]
[1759752554914,1.15841,4581.6,4581.5,3.7262]
[1759752555414,1.15841,4581.6,4581.5,3.9486]
[1759752558013,1.15841,4581.6,4581.5,3.2078]
[1759752558218,1.15841,4581.6,4581.2,0.72144]
[1759752558219,0.39274,4581.3,4581.2,0.3287]
[1759752558418,1.14354,4581.3,4581.2,0.5538]
[1759752558916,1.14356,4581.1,4581.0,3.5365]
[1759752559407,1.14356,4581.1,4581.0,3.7616]
[1759752560619,1.14356,4581.1,4581.0,3.9794]
[1759752561218,1.14356,4581.1,4581.0,4.37217]
[1759752561419,1.14356,4581.1,4581.0,3.9794]
[1759752562314,0.7508,4581.1,4581.0,4.49777]
[1759752562515,0.4404,4581.1,4581.0,4.49777]
[1759752562714,0.39275,4581.2,4581.1,0.83566]
[1759752562922,0.39275,4581.2,4581.1,1.16436]
[1759752564022,0.61014,4581.4,4581.3,1.16434]
[1759752564221,0.82914,4581.4,4581.3,1.16434]
[1759752564912,1.13954,4581.4,4581.3,1.16434]
[1759752566015,0.82914,4581.4,4581.3,1.16434]
[1759752566416,0.61174,4581.4,4581.3,1.16434]
[1759752566621,0.219,4581.4,4581.3,1.16434]
[1759752566821,0.61173,4581.4,4581.3,1.16434]
[1759752567610,0.219,4581.4,4581.3,1.16434]
[1759752568625,0.3927,4581.8,4581.7,0.7716]
[1759752568821,0.6117,4581.8,4581.7,3.9794]
[1759752569224,0.8291,4581.8,4581.7,3.9794]
[1759752569620,0.8291,4581.8,4581.7,4.37211]
[1759752569820,0.6117,4581.8,4581.7,4.37211]
[1759752570716,0.219,4581.8,4581.7,4.37211]
[1759752571121,0.6117,4581.8,4581.7,4.37211]
[1759752571321,0.219,4581.8,4581.7,4.37211]
[1759752571522,0.6117,4581.8,4581.7,4.37211]
[1759752572016,0.00191206,4582.0,4581.9,0.39269]
[1759752572217,0.00191206,4582.0,4581.9,1.16429]
[1759752573425,0.39459206,4582.0,4581.9,1.16429]
[1759752573827,0.00191206,4582.0,4581.9,1.16429]
[1759752574225,0.00191206,4582.0,4581.9,41.96429]
[1759752574927,0.39459206,4582.0,4581.9,41.96429]
[1759752575633,0.39459206,4582.0,4581.9,0.7716]
[1759752576827,0.93749206,4582.0,4581.9,0.7716]
[1759752577032,1.15649206,4582.0,4581.9,0.7716]
[1759752577623,0.00191206,4582.0,4581.9,0.7716]
[1759752577828,0.00191206,4582.0,4581.9,1.16429]
[1759752578432,0.60839206,4582.0,4581.9,1.16429]
[1759752578732,0.00191206,4582.0,4581.9,1.16429]
[1759752579634,0.21571206,4582.0,4581.9,1.16429]
[1759752580334,0.00191206,4582.0,4581.9,1.16429]
[1759752583133,0.00191206,4582.0,4581.9,0.7716]
[1759752583734,0.39459206,4582.0,4581.9,1.16429]
[1759752584525,0.60839206,4582.0,4581.9,0.7716]
[1759752584835,0.82739206,4582.0,4581.9,0.7716]
[1759752585838,1.15649206,4582.0,4581.9,0.7716]
[1759752587136,0.60839206,4582.0,4581.9,0.7716]
[1759752587439,0.93749206,4582.0,4581.9,0.7716]
[1759752588135,1.15649206,4582.0,4581.9,0.7716]
[1759752594944,1.15649206,4582.0,4581.9,1.16429]
[1759752596739,0.3927,4581.8,4581.7,3.2078]
[1759752596937,0.22611206,4582.0,4581.8,0.39269]
[1759752597249,0.61879206,4582.0,4581.9,0.82219]
[1759752597443,1.09030176,4582.0,4581.9,1.13979]
[1759752597742,1.40300176,4582.0,4581.9,1.13979]
[1759752598148,0.22611206,4582.0,4581.9,1.13979]
[1759752598338,0.69772434,4582.0,4581.9,1.13979]
[1759752598743,1.09040434,4582.0,4581.9,1.13979]
[1759752599343,0.61879206,4582.0,4581.9,1.13979]
[1759752600050,0.22611206,4582.0,4581.9,1.13979]
[1759752600244,0.00191206,4582.0,4581.9,1.13979]
[1759752600450,0.3926,4582.9,4582.8,1.13971]
[1759752600846,0.3926,4582.9,4582.8,0.7471]
[1759752601449,0.61938258,4582.9,4582.8,0.7471]
[1759752601644,1.15238258,4582.9,4582.8,0.7471]
[1759752603049,0.75978258,4582.9,4582.8,0.7471]
[1759752603451,0.00258258,4582.9,4582.8,0.7471]
[1759752604546,0.22158258,4582.9,4582.8,0.7471]
[1759752605149,0.44578258,4582.9,4582.8,3.9549]
[1759752605650,0.22158258,4582.9,4582.8,3.9549]
[1759752606645,0.00258258,4582.9,4582.8,3.9549]
[1759752606853,0.00258258,4582.9,4582.8,8.9549]
[1759752608050,0.00258258,4582.9,4582.8,4.1739]
[1759752612254,0.22678258,4582.9,4582.8,4.1739]
[1759752612453,0.00258258,4582.9,4582.8,4.1739]
[1759752612948,0.00258258,4582.9,4582.8,3.4128]
[1759752612949,1.15238258,4582.9,4582.8,3.4128]
[1759752613248,1.14984,4582.5,4582.4,0.205]
[1759752613453,1.14987,4582.1,4582.0,0.8786]
[1759752613746,0.5369,4582.5,4582.4,0.7471]
[1759752614450,0.7572,4582.5,4582.4,0.7471]
[1759752616049,0.2242,4582.5,4582.4,0.7471]
[1759752616253,0.39519258,4582.9,4582.8,0.7471]
[1759752616443,0.00258258,4582.9,4582.8,0.7471]
[1759752616850,0.00258258,4582.9,4582.8,3.9549]
[1759752620848,0.00258258,4582.9,4582.8,8.9549]
[1759752621252,0.00258258,4582.9,4582.8,49.7549]
[1759752622262,0.219,4583.7,4582.9,1.31671]
[1759752622452,1.13275,4584.7,4584.6,0.559]
[1759752622762,4.65041467,4584.7,4584.6,0.559]
[1759752622951,4.65041467,4584.7,4584.6,0.2238]
[1759752623157,1.13277,4584.4,4584.3,0.559]
[1759752623353,1.6030497,4584.4,4584.3,0.78086196]
[1759752623751,1.6030497,4584.4,4584.3,0.00236196]
[1759752624056,6.6030497,4584.4,4584.3,0.00236196]
[1759752626060,9.45093002,4584.4,4584.3,0.00236196]
[1759752630058,1.6030497,4584.4,4584.3,0.56136196]
[1759752630260,1.8220497,4584.4,4584.3,0.78086196]
[1759752630564,1.8220497,4584.4,4584.3,0.56136196]
[1759752630766,1.8220497,4584.4,4584.3,0.78086196]
[1759752631366,1.8220497,4584.4,4584.3,0.56136196]
[1759752632571,1.8220497,4584.4,4584.3,0.78086196]
[1759752634569,1.8220497,4584.4,4584.3,0.56136196]
[1759752634767,1.8220497,4584.4,4584.3,0.00236196]
[1759752637861,1.8220497,4584.4,4584.3,0.73226196]
[1759752638670,1.8220497,4584.4,4584.3,0.52126196]
[1759752638970,1.8220497,4584.4,4584.3,0.00236196]
[1759752639168,1.82078355,4584.4,4584.3,0.00236196]
[1759752640771,1.8207567,4584.4,4584.3,0.00236196]
[1759752642176,1.8207567,4584.4,4584.3,0.20846196]
[1759752642387,1.35454726,4584.4,4584.3,0.00236196]
[1759752644282,1.82096019,4584.4,4584.3,0.00236196]
[1759752644480,1.82096019,4584.4,4584.3,0.73226196]
[1759752644883,1.60196019,4584.4,4584.3,0.73226196]
[1759752645187,1.82096019,4584.4,4584.3,0.73226196]
[1759752645987,1.60196019,4584.4,4584.3,0.00236196]
[1759752646190,1.82096019,4584.4,4584.3,0.00236196]
[1759752647995,1.60196019,4584.4,4584.3,0.00236196]
[1759752648188,1.82096019,4584.4,4584.3,0.00236196]
[1759752648985,4.69573359,4584.4,4584.3,0.00236196]
[1759752650389,0.82733,4583.7,4583.6,3.2078]
[1759752650587,0.39258,4583.2,4583.1,3.5316]
[1759752650789,1.82269293,4583.2,4583.1,3.7499]
[1759752651496,1.82269293,4583.2,4583.1,3.75264296]
[1759752651696,1.82269293,4583.2,4583.1,3.42884296]
[1759752651995,1.82269293,4583.2,4583.1,4.14523296]
[1759752652885,1.82269293,4583.2,4583.1,4.36643296]
[1759752653191,1.17276798,4584.6,4584.0,0.1325]
[1759752653390,3.2078,4584.7,4584.3,1.15578]
[1759752653592,0.22177726,4584.4,4584.3,1.15578]
[1759752654895,0.00277726,4584.4,4584.3,1.15578]
[1759752655393,0.22177726,4584.4,4584.3,1.15578]
[1759752655592,0.44257726,4584.4,4584.3,1.15578]
[1759752655893,0.22177726,4584.4,4584.3,1.15578]
[1759752656997,0.00277726,4584.4,4584.3,1.15578]
[1759752657197,0.22177726,4584.4,4584.3,1.15578]
[1759752659197,0.22357726,4584.4,4584.3,1.15578]
[1759752659399,0.44257726,4584.4,4584.3,1.15578]
[1759752660496,0.22357726,4584.4,4584.3,1.15578]
[1759752660696,0.22177726,4584.4,4584.3,1.15578]
[1759752661087,0.00277726,4584.4,4584.3,1.15578]
[1759752661597,0.61424726,4584.4,4584.3,1.15578]
[1759752662096,0.83504726,4584.4,4584.3,1.15578]
[1759752662297,0.61604726,4584.4,4584.3,1.15578]
[1759752662495,0.83504726,4584.4,4584.3,1.15578]
[1759752662799,1.04904726,4584.4,4584.3,1.15578]
[1759752663000,0.44257726,4584.4,4584.3,1.15578]
[1759752663999,0.83504726,4584.4,4584.3,1.15578]
[1759752664597,0.44257726,4584.4,4584.3,1.15578]
[1759752665800,0.83504726,4584.4,4584.3,1.15578]
[1759752666594,1.04904726,4584.4,4584.3,0.7633]
[1759752666797,0.8273,4584.1,4584.0,3.4261]
[1759752666989,1.60135926,4584.1,4584.0,3.5586]
[1759752667193,1.29145926,4584.1,4584.0,3.7798]
[1759752667393,1.29145926,4584.1,4584.0,4.1036]
[1759752667890,1.60135926,4584.1,4584.0,3.5316]
[1759752668091,0.39254,4583.6,4583.5,0.1325]
[1759752668289,0.6538,4583.6,4583.5,0.572]
[1759752668490,0.00277726,4584.4,4584.3,0.39248]
[1759752668796,0.46692605,4584.4,4584.3,1.15578]
[1759752668995,0.22177726,4584.4,4584.3,1.15578]
[1759752669394,0.44257726,4584.4,4584.3,0.7633]
[1759752669597,0.22177726,4584.4,4584.3,41.5633]
[1759752671100,0.96647726,4584.4,4584.3,0.5421]
[1759752671403,0.82733,4583.8,4583.7,0.7633]
[1759752671598,1.04633,4583.8,4583.7,0.7633]
[1759752671800,1.35623,4583.8,4583.7,0.5421]
[1759752671997,1.13724,4583.6,4583.5,0.5421]
[1759752674198,1.60122134,4583.6,4583.5,0.3238]
[1759752674399,1.60122134,4583.6,4583.5,0.5421]
[1759752674698,1.29132134,4583.6,4583.5,0.8958]
[1759752674897,0.85652134,4583.6,4583.5,0.8958]
[1759752675098,0.61154,4583.6,4583.5,0.8958]
[1759752675298,1.04634,4583.6,4583.5,0.8958]
[1759752676103,0.82734,4583.6,4583.5,0.8958]
[1759752676297,1.04634,4583.6,4583.5,0.8958]
[1759752676795,0.2208,4583.2,4583.1,3.65004296]
[1759752677197,0.4398,4583.2,4583.1,3.65004296]
[1759752677399,0.4398,4583.2,4583.1,3.97384296]
[1759752677698,1.04638,4583.2,4583.1,3.97384296]
[1759752677906,1.35628,4583.2,4583.1,0.54484296]
[1759752678400,1.04638,4583.2,4583.1,0.75154296]
[1759752679201,0.83238,4583.2,4583.1,0.75154296]
[1759752679501,4.66560912,4583.2,4583.1,0.00274296]
[1759752680606,3.98291523,4583.2,4583.1,0.74074296]
[1759752681105,4.20191523,4583.2,4583.1,0.74074296]
[1759752681301,3.59033523,4583.2,4583.1,1.13333296]
[1759752681495,13.73942309,4586.6,4583.6,0.5149]
[1759752681496,0.39254,4583.7,4583.6,0.5149]
[1759752681699,1.28478335,4583.7,4583.6,0.738]
[1759752682304,0.88744335,4583.7,4583.6,0.738]
[1759752682604,0.219,4583.7,4583.6,0.738]
[1759752684703,0.4288,4583.7,4583.6,0.738]
[1759752685210,0.219,4583.7,4583.6,0.738]
[1759752685508,0.39253,4583.8,4583.6,0.738]
[1759752685509,0.39253,4583.8,4583.7,0.738]
[1759752685710,0.61153,4583.8,4583.7,0.738]
[1759752685905,0.82133,4583.8,4583.7,0.738]
[1759752686212,0.60233,4583.8,4583.7,0.738]
[1759752686405,0.82133,4583.8,4583.7,0.738]
[1759752686605,0.60233,4583.8,4583.7,0.738]
[1759752687511,0.82133,4583.8,4583.7,0.738]
[1759752688404,0.60233,4583.8,4583.7,0.738]
[1759752688602,0.39249,4584.2,4584.0,1.0398]
[1759752688908,0.60229,4584.2,4584.1,0.738]
[1759752689110,0.82129,4584.2,4584.1,0.738]
[1759752689313,0.60229,4584.2,4584.1,0.738]
[1759752689611,0.82129,4584.2,4584.1,0.738]
[1759752690207,1.83020587,4584.2,4584.1,0.738]
[1759752690914,1.61120587,4584.2,4584.1,0.738]
[1759752691409,1.28010587,4584.2,4584.1,0.738]
[1759752691611,0.46361587,4584.2,4584.1,0.738]
[1759752691812,0.46361587,4584.2,4584.0,0.52491]
[1759752691813,0.22177726,4584.4,4584.3,0.738]
[1759752693613,1.31212,4585.2,4584.3,0.738]
[1759752693614,3.2078,4585.5,4585.3,0.39239]
[1759752693915,4.35528,4585.5,4585.4,0.738]
[1759752694104,5.03791321,4585.5,4585.4,0.738]
[1759752694304,7.43457356,4585.5,4585.0,0.1324]
[1759752694509,7.43457356,4585.5,4583.6,0.98135]
[1759752694510,0.2098,4584.1,4584.0,3.3402]
[1759752694707,0.64558653,4584.1,4584.0,3.77]
[1759752695010,0.64558653,4584.1,4584.0,0.8956]
[1759752695011,0.96348653,4584.1,4584.0,0.8956]
[1759752696318,0.96348653,4584.1,4584.0,0.3334]
[1759752696816,0.96348653,4584.1,4584.0,0.5571]
[1759752697514,0.96348653,4584.1,4584.0,0.35712102]
[1759752698314,0.96348653,4584.1,4584.0,0.57592102]
[1759752698712,0.96348653,4584.1,4584.0,0.2237]
[1759752698912,0.96348653,4584.1,4583.5,3.3402]
[1759752698913,1.13104,4583.6,4583.5,3.4315]
[1759752699114,1.35004,4583.6,4583.5,3.4315]
[1759752699718,0.7385,4583.2,4583.1,0.00274296]
[1759752700012,0.9575,4583.2,4583.1,0.00274296]
[1759752700210,0.9575,4583.2,4583.1,0.77864296]
[1759752700416,0.6396,4583.2,4583.1,0.77864296]
[1759752700617,0.9575,4583.2,4583.1,0.77864296]
[1759752701415,0.2103,4583.6,4583.5,1.30015]
[1759752701620,0.68309805,4583.6,4583.5,0.9076]
[1759752701814,0.89339805,4583.6,4583.5,0.9076]
[1759752702009,1.21129805,4583.6,4583.5,0.9076]
[1759752702621,1.42159805,4583.6,4583.5,0.9076]
[1759752702922,1.42159805,4583.6,4583.5,0.2237]
[1759752703312,1.13107,4583.3,4583.2,0.5571]
[1759752703518,1.59517744,4583.3,4583.2,0.5571]
[1759752703718,0.39255,4583.5,4583.2,0.83507]
[1759752703920,0.39255,4583.5,4583.4,0.7759]
[1759752704119,1.06693142,4583.5,4583.4,0.7759]
[1759752704721,1.28593142,4583.5,4583.4,0.7759]
[1759752705417,0.68308142,4583.5,4583.4,0.7759]
[1759752705817,0.67438142,4583.5,4583.4,0.7759]
[1759752706020,0.89338142,4583.5,4583.4,0.7759]
[1759752706718,1.42158142,4583.5,4583.4,0.7759]
[1759752706915,0.60288,4583.2,4583.1,0.22644296]
[1759752707114,0.2103,4583.9,4583.8,0.3334]
[1759752707318,0.89338783,4583.9,4583.8,0.7759]
[1759752707520,0.67438783,4583.9,4583.8,0.7759]
[1759752707720,0.89338783,4583.9,4583.8,0.7759]
[1759752707916,0.67438783,4583.9,4583.8,1.16843]
[1759752708122,0.2103,4583.9,4583.8,3.9837]
[1759752708322,0.39251,4584.0,4583.9,0.7576]
[1759752708522,0.61151,4584.0,4583.9,0.7576]
[1759752708722,0.82521,4584.0,4583.9,0.7576]
[1759752709123,1.36371,4584.0,4583.9,0.7576]
[1759752709426,1.04931,4584.0,4583.9,0.7576]
[1759752710729,1.36371,4584.0,4583.9,0.7576]
[1759752711324,0.00258653,4584.1,4584.0,0.8864]
[1759752711930,0.22158653,4584.1,4584.0,41.6864]
[1759752712228,0.00258653,4584.1,4584.0,41.6864]
[1759752712430,0.00258653,4584.1,4584.0,46.6864]
[1759752713121,0.00258653,4584.1,4584.0,47.85769154]
[1759752713328,4.35241,4585.2,4585.1,0.7576]
[1759752713529,4.81638617,4585.2,4585.1,0.7576]
[1759752713728,5.03538617,4585.2,4585.1,0.7576]
[1759752714224,5.03795605,4585.2,4585.1,0.7576]
[1759752714420,4.06675605,4585.2,4585.1,0.7576]
[1759752714625,4.28575605,4585.2,4585.1,0.7576]
[1759752714928,4.49945605,4585.2,4585.1,0.7576]
[1759752715127,4.28045605,4585.2,4585.1,0.7576]
[1759752715429,4.49945605,4585.2,4585.1,0.7576]
[1759752715825,4.81385605,4585.2,4585.1,0.7576]
[1759752716032,5.03795605,4585.2,4585.1,0.7576]
[1759752716232,1.36617988,4585.2,4585.1,0.5402]
[1759752716731,1.36617988,4585.2,4585.1,0.7576]
[1759752718130,1.36617988,4585.2,4585.1,0.5402]
[1759752718835,1.36617988,4585.2,4585.1,0.7576]
[1759752720734,1.36617988,4585.2,4585.1,0.5402]
[1759752721531,1.36617988,4585.2,4585.1,0.2188]
[1759752722027,1.36617988,4585.2,4585.1,0.5402]
[1759752722233,0.39246,4584.6,4584.5,0.1288]
[1759752722436,1.36366,4584.6,4584.5,0.2188]
[1759752723732,1.36366,4584.6,4584.5,0.93267]
[1759752723934,1.36366,4584.6,4584.5,1.15007]
[1759752724129,1.36366,4584.6,4584.5,1.27887]
[1759752724830,1.36366,4584.6,4584.5,0.8864]
[1759752725635,1.36366,4584.6,4584.5,1.27887]
[1759752726036,1.04926,4584.6,4584.5,1.27887]
[1759752727729,1.14462,4585.1,4585.0,0.82861]
[1759752727938,0.83022,4585.1,4585.0,1.27881]
[1759752728240,0.82512,4585.1,4585.0,1.27881]
[1759752728540,0.82512,4585.1,4585.0,42.07881]
[1759752729537,1.13952,4585.1,4585.0,41.6864]
[1759752729937,0.00256988,4585.2,4585.0,41.6864]
[1759752730131,0.00256988,4585.2,4585.1,1.15001]
[1759752730727,0.00256988,4585.2,4585.1,41.95001]
[1759752733443,0.00256988,4585.2,4585.1,41.5576]
[1759752735439,0.31696988,4585.2,4585.1,41.5576]
[1759752736848,0.00256988,4585.2,4585.1,41.5576]
[1759752738245,0.32486988,4585.2,4585.1,41.5576]
[1759752738446,0.00256988,4585.2,4585.1,41.5576]
[1759752739244,0.39497988,4585.2,4585.1,41.5576]
[1759752739550,0.00256988,4585.2,4585.1,41.5576]
[1759752745256,0.39497988,4585.2,4585.1,41.5576]
[1759752745452,0.39497988,4585.2,4585.1,41.95001]
[1759752745753,0.71727988,4585.2,4585.1,41.95001]
[1759752745953,0.39497988,4585.2,4585.1,41.95001]
[1759752746149,0.39497988,4585.2,4585.1,41.5576]
[1759752746346,0.39497988,4585.2,4585.1,41.95001]
[1759752747348,0.00256988,4585.2,4585.1,41.95001]
[1759752748350,0.39229,4586.6,4586.5,0.1273]
[1759752748557,0.46410053,4586.6,4586.5,0.8843]
[1759752748950,0.46410053,4586.6,4586.5,41.6843]
[1759752749456,0.46634624,4586.6,4586.5,41.68661436]
[1759752750248,0.00224571,4586.6,4586.5,41.68661436]